bitfinex/quotes_SOLUSD_20260113
["timestamp","ask_amount","ask_price","bid_price","bid_amount"]
[1768320965137,0.70627227,143.02,142.98,0.67587386]
[1768320965332,2.25407758,143.01,142.98,0.61587386]
[1768320965533,0.70627227,143.02,142.98,0.61587386]
[1768320965738,7e-08,143.01,142.98,0.61587386]
[1768320965946,7e-08,143.01,142.96,24.48237268]
[1768320965947,6.99076508,143.05,142.99,0.67587386]
[1768320966150,0.2,143.06,143.01,0.67587386]
[1768320966334,0.51864326,143.06,143.01,0.61587386]
[1768320966653,2.25407758,143.04,143.0,37.23552447]
[1768320967244,2.25407758,143.04,143.0,37.17552447]
[1768320967439,0.51864326,143.06,143.0,37.17552447]
[1768320967754,0.51864326,143.06,143.02,15.0]
[1768320967755,2.45407758,143.06,143.02,15.0]
[1768320968140,2.45407758,143.06,143.03,6.99154023]
[1768320968341,2.25407758,143.05,143.03,7.66741409]
[1768320968552,0.2,143.06,143.03,7.66741409]
[1768320968739,2.25407758,143.05,143.03,7.66741409]
[1768320968954,2.25407758,143.05,143.03,6.99154023]
[1768320969762,2.25407758,143.05,143.02,7.66770569]
[1768320970142,0.52248078,143.06,143.02,7.66770569]
[1768320970343,2.25407758,143.03,143.02,7.66770569]
[1768320970650,0.52248078,143.06,143.02,7.66770569]
[1768320970833,0.69859683,143.05,143.02,6.99183183]
[1768320971036,2.25407758,143.04,143.02,6.99183183]
[1768320971246,2.25407758,143.03,143.02,6.99183183]
[1768320971447,0.69859683,143.05,143.02,6.99183183]
[1768320971949,0.2,143.06,143.02,6.99183183]
[1768320972150,2.25407758,143.04,143.02,6.99183183]
[1768320973765,2.25407758,143.04,143.02,7.66770569]
[1768320974768,0.51864326,143.06,143.02,7.66770569]
[1768320974955,2.25407758,143.04,143.02,7.66770569]
[1768320975353,1e-08,143.04,143.02,7.66770569]
[1768320975870,2.25407758,143.05,143.02,7.66770569]
[1768320976467,2.94646026,143.05,143.01,24.47311032]
[1768320976667,2.45407758,143.06,143.02,0.71689881]
[1768320976862,0.2,143.06,143.02,0.71689881]
[1768320977048,2.25407758,143.05,143.02,0.71689881]
[1768320978187,2.25407758,143.04,143.01,6.992518]
[1768320978975,2.25407758,143.04,143.01,0.71689881]
[1768320979180,2.25407758,143.03,143.0,30.24185797]
[1768320979473,2.25407758,143.03,143.0,30.95875678]
[1768320981473,3.5183166,143.03,143.0,37.95176377]
[1768320981663,3.5183166,143.01,142.99,6.99317972]
[1768320981868,4.2001131,143.0,142.97,6.99404036]
[1768320982064,3.5183166,142.99,142.97,6.99404036]
[1768320982567,3.5183166,142.98,142.96,7.71173228]
[1768320982776,3.8645462,142.97,142.92,18.20888928]
[1768320982955,0.3462296,142.97,142.93,6.99608051]
[1768320983150,3.5183166,142.95,142.93,6.99608051]
[1768320983356,3.5183166,142.94,142.93,6.99608051]
[1768320983554,0.3462296,142.97,142.93,6.99608051]
[1768320983762,3.5183166,142.94,142.91,12.76]
[1768320983969,4.18695555,142.92,142.88,0.71689881]
[1768320984156,3.5183166,142.9,142.88,6.99888017]
[1768320984351,0.66863895,142.92,142.87,0.71689881]
[1768320984352,3.5183166,142.89,142.87,0.71689881]
[1768320985571,3.5183166,142.89,142.88,6.99888017]
[1768320986978,4.09055051,142.92,142.88,6.99888017]
[1768320987169,3.5183166,142.89,142.88,6.99888017]
[1768320987483,0.57223391,142.92,142.88,6.99888017]
[1768320987780,0.099,142.91,142.86,12.76]
[1768320988083,3.5183166,142.87,142.85,0.71689881]
[1768320988261,3.5183166,142.87,142.84,13.47689881]
[1768320988461,0.10368501,142.89,142.84,0.71689881]
[1768320988462,3.5183166,142.86,142.84,0.71689881]
[1768320988662,0.10368501,142.89,142.84,0.71689881]
[1768320989163,3.5183166,142.86,142.84,0.71689881]
[1768320989367,0.10368501,142.89,142.84,0.71689881]
[1768320989586,0.10368501,142.89,142.85,7.00021695]
[1768320989786,3.5183166,142.86,142.85,7.00021695]
[1768320990093,3.5183166,142.86,142.83,17.60273858]
[1768320990297,3.5183166,142.85,142.83,0.1]
[1768320990461,3.5183166,142.84,142.83,0.1]
[1768320990661,3.5183166,142.84,142.82,19.76150903]
[1768320990862,3.5183166,142.83,142.8,2.59242743]
[1768320991062,3.5183166,142.86,142.78,7.00339668]
[1768320991063,3.5183166,142.81,142.78,7.00339668]
[1768320991262,3.5183166,142.8,142.78,7.00339668]
[1768320991458,3.5183166,142.86,142.77,7.72101538]
[1768320991459,3.5183166,142.79,142.77,7.72101538]
[1768320991682,7.00148802,142.83,142.77,7.72101538]
[1768320991895,4.20513466,142.78,142.74,0.1]
[1768320992071,3.6173166,142.75,142.7,0.4466308]
[1768320992258,3.5183166,142.72,142.7,0.4466308]
[1768320992460,0.099,142.75,142.7,0.4466308]
[1768320992663,3.5183166,142.74,142.7,0.4466308]
[1768320992863,0.52967601,142.77,142.7,0.4466308]
[1768320993165,0.52967601,142.77,142.71,24.5251661]
[1768320993383,8.74793683,142.74,142.71,24.5251661]
[1768320993580,0.52967601,142.77,142.71,24.5251661]
[1768320993890,15.75107536,142.8,142.73,0.71689881]
[1768320993891,8.74793683,142.76,142.73,0.71689881]
[1768320994185,0.099,142.79,142.73,0.71689881]
[1768320994400,8.74793683,142.76,142.73,0.71689881]
[1768320994572,0.099,142.79,142.73,0.71689881]
[1768320994990,8.74793683,142.74,142.71,37.95023188]
[1768320995289,8.74793683,142.74,142.71,24.5251661]
[1768320995498,0.52114819,142.76,142.71,24.5251661]
[1768320995715,8.74793683,142.74,142.71,24.5251661]
[1768320995880,0.52114819,142.76,142.71,24.5251661]
[1768320996071,8.74793683,142.75,142.71,24.5251661]
[1768320997079,8.74793683,142.74,142.71,7.00712252]
[1768320997480,0.52967601,142.78,142.72,0.66506578]
[1768320997670,8.74793683,142.75,142.73,7.00623554]
[1768320998889,0.52536925,142.76,142.73,7.00623554]
[1768320999098,8.74793683,142.75,142.73,7.00623554]
[1768320999271,8.74793683,142.74,142.73,7.00623554]
[1768320999482,8.74793683,142.74,142.71,7.00676126]
[1768320999879,8.74793683,142.75,142.71,7.67182704]
[1768321000090,8.74793683,142.76,142.71,16.41976387]
[1768321000297,8.74793683,142.76,142.71,33.93780745]
[1768321000500,0.52967601,142.8,142.72,9.41300261]
[1768321000680,8.74793683,142.77,142.73,0.66506578]
[1768321001391,8.74793683,142.76,142.73,0.66506578]
[1768321001975,8.74793683,142.76,142.74,7.00574471]
[1768321002595,8.74793683,142.77,142.74,7.00574471]
[1768321003175,0.099,142.78,142.74,7.00574471]
[1768321003599,8.74793683,142.76,142.74,7.00574471]
[1768321003983,0.099,142.79,142.74,25.18517226]
[1768321004171,8.74793683,142.77,142.74,25.18517226]
[1768321004376,0.099,142.79,142.74,25.18517226]
[1768321004595,0.52967601,142.81,142.75,0.66506578]
[1768321004799,8.74793683,142.78,142.75,0.66506578]
[1768321005006,8.74793683,142.77,142.74,7.00574471]
[1768321005297,8.74793683,142.76,142.74,7.00574471]
[1768321005690,8.74793683,142.76,142.71,22.19300261]
[1768321005892,8.74793683,142.76,142.72,7.00672645]
[1768321006404,8.74793683,142.76,142.73,0.66506578]
[1768321007000,0.099,142.78,142.73,0.66506578]
[1768321007001,8.74793683,142.78,142.74,7.67081049]
[1768321007202,0.099,142.8,142.75,0.66506578]
[1768321007402,8.74793683,142.79,142.75,0.66506578]
[1768321008503,8.74793683,142.78,142.75,0.66506578]
[1768321009111,8.74793683,142.78,142.76,7.00476323]
[1768321009286,0.099,142.8,142.76,7.00476323]
[1768321009486,0.099,142.8,142.76,6.94476323]
[1768321010005,8.74793683,142.78,142.76,6.94476323]
[1768321010514,7.10180152,142.8,142.76,6.94476323]
[1768321010682,8.74793683,142.78,142.76,6.94476323]
[1768321010879,8.74793683,142.77,142.74,24.51974646]
[1768321011187,8.74793683,142.77,142.74,7.00574471]
[1768321011389,0.52967601,142.8,142.75,0.66506578]
[1768321011588,8.74793683,142.79,142.75,0.60506578]
[1768321012014,8.74793683,142.78,142.75,0.60506578]
[1768321012513,0.099,142.78,142.71,12.78]
[1768321012699,8.74793683,142.77,142.74,7.00560512]
[1768321012896,8.74793683,142.76,142.74,7.00560512]
[1768321013292,0.099,142.78,142.75,7.00522202]
[1768321013694,3.53195628,142.78,142.75,7.00522202]
[1768321013899,3.53195628,142.77,142.74,7.67060256]
[1768321014202,7.10244863,142.79,142.71,12.78]
[1768321014203,3.53195628,142.75,142.72,7.67163599]
[1768321014497,3.53195628,142.75,142.73,7.00616023]
[1768321014699,3.53195628,142.78,142.74,0.66506578]
[1768321015818,4.11672552,142.78,142.75,7.00525394]
[1768321015994,20.37260804,142.8,142.75,7.67031972]
[1768321016189,13.36967601,142.8,142.76,0.66506578]
[1768321016813,3.63095628,142.81,142.76,4.19702206]
[1768321017016,0.099,142.81,142.76,4.19702206]
[1768321017312,3.63095628,142.81,142.76,4.19702206]
[1768321017492,3.53195628,142.8,142.76,0.66506578]
[1768321017694,3.53195628,142.8,142.77,7.0042726]
[1768321017893,0.099,142.81,142.77,7.0042726]
[1768321018223,3.53195628,142.8,142.77,7.0042726]
[1768321018603,4.11672552,142.8,142.76,7.66966043]
[1768321018907,3.53195628,142.79,142.76,7.00459465]
[1768321019417,3.53195628,142.78,142.75,7.00512555]
[1768321019622,7.10717622,142.79,142.75,7.00512555]
[1768321019801,3.53195628,142.78,142.75,7.00512555]
[1768321019991,7.10717622,142.79,142.75,7.00512555]
[1768321020194,3.53195628,142.78,142.75,7.00512555]
[1768321020404,3.53195628,142.77,142.74,7.67078609]
[1768321020912,3.53195628,142.78,142.74,25.18514786]
[1768321021100,7.5920419,142.81,142.76,0.66506578]
[1768321021304,3.53195628,142.77,142.74,7.67078609]
[1768321021492,3.63581398,142.78,142.74,7.67078609]
[1768321022318,3.53195628,142.78,142.74,7.67078609]
[1768321022905,3.53195628,142.78,142.74,25.18514786]
[1768321023791,3.63095628,142.78,142.74,7.67078609]
[1768321023999,0.099,142.78,142.74,7.67078609]
[1768321024420,3.53195628,142.78,142.74,25.18514786]
[1768321024713,3.53195628,142.8,142.76,0.66506578]
[1768321024921,3.63095628,142.8,142.76,0.66506578]
[1768321025414,0.099,142.8,142.76,0.66506578]
[1768321025611,3.63095628,142.8,142.76,0.66506578]
[1768321025824,4.11672552,142.79,142.76,7.00476323]
[1768321026819,0.58967601,142.81,142.76,24.51667132]
[1768321027028,0.099,142.8,142.76,24.51667132]
[1768321027218,3.53195628,142.79,142.76,24.51667132]
[1768321027694,13.36967601,142.82,142.78,7.70305028]
[1768321027901,4.11672552,142.82,142.78,6.94378204]
[1768321028109,3.53195628,142.81,142.78,6.94378204]
[1768321028314,3.53195628,142.8,142.78,6.94378204]
[1768321028513,3.53195628,142.79,142.77,7.00408531]
[1768321029229,3.53195628,142.79,142.77,6.94408531]
[1768321029411,3.53195628,142.8,142.77,6.94408531]
[1768321029817,0.099,142.81,142.77,7.64335355]
[1768321030002,3.53195628,142.8,142.77,7.64335355]
[1768321030319,3.53195628,142.79,142.74,0.69926824]
[1768321030502,3.53195628,142.78,142.74,7.70470973]
[1768321030702,0.10385769,142.79,142.75,7.00525334]
[1768321030898,3.53195628,142.78,142.75,7.00525334]
[1768321031205,3.53195628,142.78,142.75,0.69926824]
[1768321031405,3.53195628,142.78,142.75,7.70426574]
[1768321031919,3.53195628,142.8,142.77,0.69926824]
[1768321032428,3.53195628,142.8,142.76,7.70398688]
[1768321033032,7.59226101,142.81,142.77,0.69926824]
[1768321033211,3.53195628,142.81,142.77,0.69926824]
[1768321033533,3.53195628,142.82,142.78,0.69926824]
[1768321033836,3.53195628,142.81,142.78,0.69926824]
[1768321034010,3.53195628,142.82,142.78,0.69926824]
[1768321034418,3.53195628,142.82,142.78,7.70273125]
[1768321034731,3.53195628,142.81,142.78,7.70273125]
[1768321034912,3.53195628,142.84,142.8,0.69926824]
[1768321035112,3.53195628,142.84,142.8,0.57926824]
[1768321035323,3.53195628,142.83,142.8,0.51926824]
[1768321035625,3.53195628,142.83,142.8,0.45926824]
[1768321035929,4.11662113,142.81,142.77,7.0039189]
[1768321036120,3.53195628,142.8,142.77,7.0039189]
[1768321036626,3.53195628,142.8,142.76,24.51593924]
[1768321037329,0.58466485,142.81,142.76,24.51593924]
[1768321037510,3.53195628,142.8,142.77,0.71743773]
[1768321037708,3.87351732,142.8,142.75,20.50253535]
[1768321037908,3.53195628,142.78,142.75,20.50253535]
[1768321038109,3.53195628,142.78,142.75,7.72253535]
[1768321038730,0.58223382,142.79,142.75,7.72253535]
[1768321039042,3.53195628,142.78,142.75,7.72253535]
[1768321039210,0.58223382,142.79,142.75,7.72253535]
[1768321039414,4.1141901,142.79,142.75,7.72253535]
[1768321039619,3.87592404,142.78,142.75,7.00509762]
[1768321040007,3.87592404,142.78,142.74,7.7229881]
[1768321040308,0.34396776,142.78,142.75,7.00514324]
[1768321040517,3.53195628,142.77,142.75,7.00514324]
[1768321040710,7.00335136,142.79,142.75,7.00514324]
[1768321040917,3.53195628,142.78,142.75,7.00514324]
[1768321041633,3.53195628,142.78,142.75,7.72258097]
[1768321042020,3.77545759,142.78,142.74,7.00574471]
[1768321042350,3.53195628,142.77,142.74,7.00574471]
[1768321042511,4.21126923,142.77,142.74,7.00574471]
[1768321042711,3.7798157,142.76,142.73,7.00608193]
[1768321043026,3.7798157,142.76,142.72,7.72401028]
[1768321043229,3.53195628,142.75,142.73,7.00597865]
[1768321043432,2.26102057,142.75,142.73,7.00597865]
[1768321044020,0.68371509,142.78,142.73,7.72341638]
[1768321044228,5.47967291,142.77,142.73,7.72341638]
[1768321044413,0.24350131,142.8,142.75,0.71743773]
[1768321044626,0.24350131,142.84,142.77,0.71743773]
[1768321044840,2.26102057,142.82,142.78,0.71743773]
[1768321045050,2.26102057,142.83,142.79,0.71743773]
[1768321045428,0.68371509,142.88,142.79,0.71743773]
[1768321045629,17.49650888,142.89,142.79,0.71743773]
[1768321045630,2.26102057,142.84,142.79,0.71743773]
[1768321046255,0.67931295,142.85,142.8,25.22724165]
[1768321046425,9.26094994,142.86,142.8,7.66023886]
[1768321046426,2.26102057,142.82,142.8,7.66023886]
[1768321047352,5.37792035,142.82,142.8,7.66023886]
[1768321047862,5.37792035,142.82,142.8,6.94280113]
[1768321048651,5.37792035,142.81,142.8,6.94280113]
[1768321049031,4.23370537,142.81,142.8,6.94280113]
[1768321049337,0.24785942,142.84,142.8,6.88280113]
[1768321049534,5.37792035,142.82,142.8,6.88280113]
[1768321049745,5.37792035,142.81,142.77,18.22746391]
[1768321049941,5.37792035,142.8,142.79,7.00284542]
[1768321050637,5.37792035,142.8,142.79,6.94284542]
[1768321050839,0.25213081,142.82,142.79,6.94284542]
[1768321051036,5.37792035,142.8,142.79,6.94284542]
[1768321051439,5.37792035,142.81,142.79,6.94284542]
[1768321051831,5.37792035,142.8,142.79,6.94284542]
[1768321052647,5.37792035,142.81,142.79,6.94284542]
[1768321052845,0.24350131,142.83,142.79,6.94284542]
[1768321053030,5.37792035,142.81,142.79,6.94284542]
[1768321053530,0.24350131,142.83,142.79,7.66028315]
[1768321053531,5.37792035,142.82,142.79,7.66028315]
[1768321053834,5.37792035,142.82,142.8,0.71743773]
[1768321054031,20.4641801,142.85,142.8,0.71743773]
[1768321054234,5.37792035,142.83,142.8,0.71743773]
[1768321054548,0.24350131,142.84,142.81,7.00231076]
[1768321054854,5.37792035,142.82,142.8,0.71743773]
[1768321055430,0.24350131,142.84,142.8,0.65743774]
[1768321055631,7.66341098,142.87,142.8,0.65743774]
[1768321055832,5.37792035,142.85,142.8,29.88772427]
[1768321056354,0.66396741,142.87,142.8,24.50980392]
[1768321056738,5.37792035,142.85,142.8,29.88772427]
[1768321056951,5.37792035,142.84,142.8,24.50980392]
[1768321057159,0.66055225,142.85,142.8,24.50980392]
[1768321057160,5.37792035,142.83,142.8,24.50980392]
[1768321057336,5.37792035,142.84,142.8,24.50980392]
[1768321057651,5.37792035,142.84,142.81,0.65701502]
[1768321058659,5.37792035,142.84,142.82,24.50637165]
[1768321058845,0.66055225,142.85,142.82,24.44637166]
[1768321059166,0.66055225,142.85,142.82,24.38637168]
[1768321059333,5.37792035,142.84,142.82,24.38637168]
[1768321059533,5.70375286,142.84,142.82,6.8818205]
[1768321059737,5.37792035,142.83,142.82,6.82182052]
[1768321059937,7.66394119,142.86,142.82,6.82182052]
[1768321060159,5.37792035,142.84,142.82,6.82182052]
[1768321060465,6.99952607,142.87,142.83,0.65701502]
[1768321060466,0.3224515,142.87,142.83,0.65701502]
[1768321060772,5.37792035,142.84,142.83,7.0010613]
[1768321061538,0.32583251,142.85,142.83,7.0010613]
[1768321061740,5.37792035,142.84,142.83,7.0010613]
[1768321062769,5.37792035,142.84,142.8,7.00280112]
[1768321062944,12.78,142.87,142.8,7.00280112]
[1768321062945,5.37792035,142.81,142.8,7.00280112]
[1768321063142,5.37792035,142.81,142.79,7.00308412]
[1768321064060,7.00065041,142.85,142.79,25.168328]
[1768321064366,5.37792035,142.82,142.79,25.168328]
[1768321065454,5.37792035,142.84,142.8,0.65701502]
[1768321065646,5.37792035,142.85,142.81,0.65701502]
[1768321066352,5.37792035,142.84,142.81,0.65701502]
[1768321066546,5.37792035,142.84,142.8,0.65701502]
[1768321067040,5.37792035,142.83,142.81,7.00231076]
[1768321067263,0.099,142.85,142.81,7.00231076]
[1768321067264,5.37792035,142.84,142.81,7.00231076]
[1768321067568,2.25815833,142.84,142.81,24.50808766]
[1768321068763,0.099,142.85,142.81,24.50808766]
[1768321069145,2.25815833,142.84,142.81,24.50808766]
[1768321069554,2.25815833,142.84,142.81,25.16510268]
[1768321070075,2.36172747,142.83,142.81,7.00231076]
[1768321070446,2.25815833,142.82,142.8,7.0027366]
[1768321072165,0.10356914,142.83,142.8,7.0027366]
[1768321072373,2.25815833,142.82,142.8,7.0027366]
[1768321075051,0.56052976,142.84,142.8,7.0027366]
[1768321075248,2.25815833,142.82,142.8,7.0027366]
[1768321076274,2.25815833,142.83,142.8,7.65975162]
[1768321077161,12.78,142.87,142.8,7.65975162]
[1768321077162,6.99790062,142.9,142.83,0.65701502]
[1768321077559,2.25815833,142.87,142.83,0.65701502]
[1768321077774,2.25815833,142.86,142.83,0.65701502]
[1768321078076,2.25815833,142.87,142.84,7.0008401]
[1768321079181,0.56052976,142.88,142.84,0.65701502]
[1768321079483,2.25815833,142.87,142.84,0.65701502]
[1768321080279,2.25815833,142.88,142.85,7.65736503]
[1768321080487,2.25815833,142.88,142.86,0.65701502]
[1768321080796,13.52052976,142.93,142.87,0.65701502]
[1768321080960,2.25815833,142.92,142.88,0.65701502]
[1768321081158,0.2,142.93,142.85,24.50122505]
[1768321081159,2.25815833,142.9,142.85,24.50122505]
[1768321081465,2.25815833,142.9,142.86,0.65701502]
[1768321082383,2.25815833,142.9,142.87,7.65638507]
[1768321082753,0.10356914,142.92,142.87,6.99937005]
[1768321082952,2.25815833,142.88,142.86,0.65701502]
[1768321083271,2.25815833,142.88,142.86,7.6567091]
[1768321083482,0.10804736,142.9,142.86,7.6567091]
[1768321083679,2.25815833,142.88,142.86,7.6567091]
[1768321083986,2.25815833,142.89,142.87,0.65701502]
[1768321084387,0.099,142.91,142.87,7.65603425]
[1768321084619,2.25815833,142.89,142.87,6.99901923]
[1768321085292,2.81407279,142.9,142.87,6.99901923]
[1768321085702,2.25815833,142.9,142.87,6.99901923]
[1768321085915,2.25815833,142.9,142.87,7.67294723]
[1768321086289,0.2,142.93,142.88,0.673928]
[1768321086501,2.25815833,142.92,142.89,7.67231837]
[1768321087211,0.2,142.95,142.91,0.673928]
[1768321087417,2.45815833,142.95,142.92,0.673928]
[1768321087785,0.2,142.95,142.92,0.673928]
[1768321088112,2.45815833,142.95,142.92,0.673928]
[1768321088419,2.45815833,142.95,142.92,7.61071459]
[1768321088584,2.25815833,142.94,142.89,12.76]
[1768321088784,2.25815833,142.93,142.9,6.99768742]
[1768321088983,2.25815833,142.91,142.86,2.25815833]
[1768321089198,0.60519315,142.92,142.86,2.25815833]
[1768321089405,2.25815833,142.91,142.87,2.25815833]
[1768321089616,2.25815833,142.92,142.87,2.25815833]
[1768321090000,2.25815833,142.93,142.88,26.75423894]
[1768321090503,2.25815833,142.93,142.89,0.673928]
[1768321090688,2.87347279,142.93,142.89,0.673928]
[1768321091005,2.25815833,142.93,142.89,0.673928]
[1768321091300,2.25815833,142.92,142.89,0.673928]
[1768321092099,2.87868809,142.94,142.9,0.673928]
[1768321092306,2.25815833,142.94,142.9,0.673928]
[1768321092482,2.55715833,142.95,142.91,0.673928]
[1768321092679,0.299,142.95,142.91,0.673928]
[1768321092883,0.2,142.95,142.91,2.93208633]
[1768321093080,0.2,142.95,142.93,0.673928]
[1768321093381,0.2,142.95,142.93,2.93208633]
[1768321093580,7.09307897,142.98,142.93,2.93208633]
[1768321093885,2.25815833,142.97,142.93,2.93208633]
[1768321094090,7.09307897,142.98,142.93,7.67014028]
[1768321094294,0.61531446,142.98,142.94,0.673928]
[1768321094611,0.60519315,142.94,142.9,6.99752788]
[1768321094920,0.60519315,142.94,142.9,7.67145588]
[1768321095100,2.86335148,142.94,142.9,7.67145588]
[1768321095608,2.25815833,142.94,142.91,6.99736414]
[1768321096410,2.25815833,142.94,142.9,7.67161355]
[1768321096802,7.09445495,142.95,142.9,7.67161355]
[1768321097000,2.25815833,142.94,142.9,7.67161355]
[1768321097315,5.36929431,142.94,142.91,0.69517552]
[1768321097501,7.09445495,142.95,142.91,0.69517552]
[1768321097814,5.36929431,142.93,142.89,0.69517552]
[1768321098116,5.36929431,142.93,142.89,7.69314709]
[1768321098603,0.61531446,142.94,142.89,7.69314709]
[1768321098811,5.36929431,142.93,142.89,7.69314709]
[1768321099002,5.36929431,142.93,142.89,7.69325329]
[1768321099416,5.36929431,142.91,142.88,6.99879171]
[1768321099592,24.48408733,142.95,142.86,6.99986]
[1768321099593,5.97448746,142.9,142.86,6.99986]
[1768321099793,5.36929431,142.89,142.86,6.99986]
[1768321100193,0.60519315,142.9,142.86,7.69503552]
[1768321100194,5.36929431,142.9,142.86,7.69503552]
[1768321100718,6.99757991,142.91,142.86,7.69503552]
[1768321101020,5.36929431,142.9,142.86,7.69503552]
[1768321101522,5.36929431,142.89,142.86,7.69503552]
[1768321102721,5.36929431,142.9,142.87,0.69517552]
[1768321103392,8.73022269,142.9,142.87,0.69517552]
[1768321103593,8.73022269,142.89,142.87,7.69433649]
[1768321103818,8.73022269,142.89,142.87,0.69517552]
[1768321104193,8.73022269,142.89,142.87,7.69445842]
[1768321104922,7.09660629,142.91,142.87,7.69445842]
[1768321105125,8.73022269,142.9,142.87,7.69445842]
[1768321105309,8.73022269,142.89,142.87,7.69454311]
[1768321105508,8.73022269,142.89,142.86,7.69493256]
[1768321106012,8.73022269,142.92,142.88,0.69517552]
[1768321106318,8.73022269,142.92,142.88,0.63517553]
[1768321106925,15.72717858,142.92,142.88,7.63394981]
[1768321107113,6.99695589,142.92,142.88,7.63394981]
[1768321107418,15.72717858,142.92,142.88,7.63394981]
[1768321108027,8.73022269,142.91,142.88,7.63394981]
[1768321108395,6.99695589,142.92,142.88,7.63394981]
[1768321108598,0.15839999,142.93,142.88,7.63394981]
[1768321108599,8.73022269,142.91,142.88,7.63394981]
[1768321109523,8.73022269,142.89,142.88,6.99877428]
[1768321109724,0.16297507,142.91,142.85,0.69517552]
[1768321109905,8.73022269,142.88,142.85,0.69517552]
[1768321111111,8.73022269,142.88,142.86,7.69501261]
[1768321111503,8.73022269,142.87,142.84,7.69570541]
[1768321111717,8.73022269,142.86,142.84,7.69570541]
[1768321112105,0.16745911,142.89,142.85,7.69552553]
[1768321112310,8.73022269,142.87,142.85,7.69552553]
[1768321112509,7.6785223,142.9,142.83,30.26274523]
[1768321112510,8.73022269,142.86,142.84,7.00066857]
[1768321112808,8.73022269,142.86,142.84,7.69584409]
[1768321114007,8.73022269,142.86,142.84,0.69517552]
[1768321114228,8.73022269,142.86,142.84,7.69594558]
[1768321114731,8.73022269,142.85,142.84,7.69594558]
[1768321115233,7.67387254,142.88,142.84,7.69594558]
[1768321115418,8.73022269,142.86,142.84,7.69594558]
[1768321116118,12.76,142.91,142.85,0.6803586]
[1768321116314,70.4789805,143.02,142.84,7.00077006]
[1768321116315,117.64224303,142.93,142.84,22.00077006]
[1768321116627,8.73022269,142.91,142.86,8.73022269]
[1768321117032,0.68224303,142.93,142.87,8.73022269]
[1768321117206,8.73022269,142.94,142.89,8.73022269]
[1768321117402,0.68224303,142.95,142.9,24.49265219]
[1768321117607,3.52376883,142.95,142.9,28.01642102]
[1768321117808,3.52376883,142.93,142.9,24.49265219]
[1768321118233,3.52376883,142.93,142.9,25.17301079]
[1768321118739,3.52376883,142.91,142.89,6.99819839]
[1768321119030,3.69077481,142.92,142.89,6.99819839]
[1768321119208,0.16700598,142.92,142.89,6.99819839]
[1768321119410,3.52376883,142.92,142.89,6.99819839]
[1768321119608,3.52376883,142.92,142.89,7.67855699]
[1768321119818,3.52376883,142.94,142.9,0.6803586]
[1768321120533,3.52376883,142.94,142.89,28.01794314]
[1768321120534,3.52376883,142.91,142.89,6.99819839]
[1768321120709,0.67183683,142.92,142.89,6.99819839]
[1768321120904,3.52376883,142.91,142.89,6.93819842]
[1768321122032,3.52376883,142.98,142.89,24.43417434]
[1768321122335,3.52376883,142.95,142.92,0.6803586]
[1768321122524,3.52376883,142.96,142.92,0.62035861]
[1768321123415,3.52376883,142.94,142.92,6.99686723]
[1768321124326,3.52376883,142.94,142.92,6.93686724]
[1768321125138,0.12329666,142.96,142.92,7.61722584]
[1768321125444,3.52376883,142.95,142.92,25.10952922]
[1768321129157,3.52376883,142.94,142.92,7.61722584]
[1768321130428,3.52376883,142.94,142.9,0.6803586]
[1768321131541,3.52376883,142.94,142.91,7.67776955]
[1768321132614,0.12329666,142.96,142.91,7.67776955]
[1768321132820,3.52376883,142.94,142.91,7.61776957]
[1768321133021,0.12329666,142.96,142.91,7.61776957]
[1768321133222,3.52376883,142.94,142.91,7.61776957]
[1768321133746,0.12329666,142.96,142.91,7.61776957]
[1768321133940,3.52376883,142.94,142.91,7.61776957]
[1768321135540,3.52376883,142.94,142.91,6.93741097]
[1768321135541,3.52376883,142.93,142.91,6.93741097]
[1768321136132,0.12354209,142.96,142.91,7.61776957]
[1768321136339,3.52376883,142.96,142.92,0.6803586]
[1768321136840,3.52376883,142.96,142.93,6.99643181]
[1768321137635,0.099,142.96,142.93,6.99643181]
[1768321137823,3.52376883,142.95,142.93,6.99643181]
[1768321138024,0.099,142.96,142.93,6.99643181]
[1768321139450,3.64706549,142.95,142.91,6.99693404]
[1768321141533,0.12354209,142.96,142.92,0.6803586]
[1768321141734,3.64731092,142.96,142.92,0.6803586]
[1768321141936,0.12354209,142.96,142.92,0.6803586]
[1768321142857,0.12354209,142.96,142.93,6.99643181]
[1768321143065,16.28376883,142.97,142.93,7.67679041]
[1768321143232,3.62276883,142.97,142.93,7.67679041]
[1768321143747,104.32354209,142.99,142.94,4.20412743]
[1768321144064,0.099,142.98,142.94,4.20412743]
[1768321144963,0.099,142.98,142.93,24.48751135]
[1768321144964,0.12329666,142.97,142.93,10.52020064]
[1768321145257,0.12329666,142.97,142.93,7.71138498]
[1768321145555,0.12354209,142.98,142.94,3.52376883]
[1768321145848,3.64731092,142.98,142.93,11.23515381]
[1768321146055,0.12354209,142.98,142.94,4.238722]
[1768321146438,19.95321997,143.0,142.96,4.238722]
[1768321146439,0.2,143.0,142.96,4.238722]
[1768321146659,0.12354209,143.03,142.99,0.71495317]
[1768321146955,3.52376883,143.01,142.97,0.71495317]